Workbook

Sheet Лист1
A1: Приложение № 2 к муниципальной программе Североуральского городского округа «Развитие жилищно-коммунального хозяйства и транспортного обслуживания населения, повышение энергетической эффективности и охрана окружающей среды в Североуральском городском округе» на 2014-2020 годы
A2: План мероприятий
A3: по выполнению муниципальной программы Североуральского городского округа
A4: «Развитие жилищно-коммунального хозяйства и транспортного обслуживания населения,
A5: повышение энергетической эффективности и охрана окружающей среды в Североуральском городском округе» на 2014-2020 годы
A7: № строки | B7: Наименование мероприятия/ Источники расходов на финансирование | C7: Объем расходов на выполнение мероприятия за счет всех источников ресурсного обеспечения, тыс. руб. | K7: Номер строки целевых показателей, на достижение которых направлены мероприятия
C8: Всего | D8: 2014 год | E8: 2015 год | F8: 2016 год | G8: 2017 год | H8: 2018 год | I8: 2019 год | J8: 2020 год
B9: 1 | C9: 2 | D9: 3 | E9: 4 | F9: 5 | G9: 6 | H9: 7 | I9: 8 | J9: 9 | K9: 10
B10: ВСЕГО по муниципальной программе, в том числе: | C10: =SUM(C11:C13) -> 1,173,319.03215 | D10: 283,826.90000 | E10: =SUM(E11:E13) -> 348,239.16000 | F10: =SUM(F11:F13) -> 230,590.57215 | G10: 76,165.60000 | H10: 78,165.60000 | I10: 78,165.60000 | J10: 78,165.60000 | K10: Х
B11: местный бюджет | C11: =SUM(D11:J11) -> 647,215.45145 | D11: =SUM(D15+D19) -> 92,792.80000 | E11: =SUM(E15+E19) -> 126,635.26000 | F11: 117,124.99145 | G11: 76,165.60000 | H11: 78,165.60000 | I11: 78,165.60000 | J11: 78,165.60000
B12: областной бюджет | C12: =SUM(D12:J12) -> 339,788.31777 | D12: =SUM(D16+D20) -> 109,216.10000 | E12: =SUM(E16+E20) -> 135,104.30000 | F12: =SUM(F16+F20) -> 95,467.91777 | G12: =SUM(G16+G20) -> 0.00000 | H12: =SUM(H16+H20) -> 0.00000 | I12: =SUM(I16+I20) -> 0.00000 | J12: =SUM(J16+J20) -> 0.00000
B13: федеральный бюджет | C13: =SUM(D13:J13) -> 186,315.26293 | D13: =SUM(D21+D17) -> 81,818.00000 | E13: =SUM(E21+E17) -> 86,499.60000 | F13: 17,997.66293 | G13: 0.00000 | H13: 0.00000 | I13: 0.00000 | J13: 0.00000
B14: Капитальные вложения | C14: =SUM(C15:C17) -> 688,339.14201 | D14: =SUM(D15:D17) -> 232,761.90000 | E14: =SUM(E15:E17) -> 271,669.00000 | F14: 149,075.84201 | G14: 8,708.10000 | H14: 8,708.10000 | I14: 8,708.10000 | J14: 8,708.10000 | K14: Х
B15: местный бюджет | C15: =SUM(D15:J15) -> 166,556.86131 | D15: =D29+D119+D187+D207+D237+D270+D339+D358 -> 44,727.80000 | E15: 50,411.30000 | F15: 36,585.36131 | G15: 8,708.10000 | H15: 8,708.10000 | I15: 8,708.10000 | J15: 8,708.10000
B16: областной бюджет | C16: =SUM(D16:J16) -> 335,467.01777 | D16: =D120+D208+D30 -> 106,216.10000 | E16: =E120+E208+E30 -> 134,758.10000 | F16: =F120+F208 -> 94,492.81777 | G16: =G120+G208 -> 0.00000 | H16: =H120+H208 -> 0.00000 | I16: =I120+I208 -> 0.00000 | J16: =J120+J208 -> 0.00000
B17: федеральный бюджет | C17: =SUM(D17:J17) -> 186,315.26293 | D17: =D209 -> 81,818.00000 | E17: =E209 -> 86,499.60000 | F17: 17,997.66293 | G17: 0.00000 | H17: 0.00000 | I17: 0.00000 | J17: 0.00000
B18: Прочие нужды | C18: =SUM(C19:C20) -> 484,979.89014 | D18: =SUM(D19:D20) -> 51,065.00000 | E18: =SUM(E19:E20) -> 76,570.16000 | F18: 81,514.73014 | G18: 67,457.50000 | H18: 69,457.50000 | I18: 69,457.50000 | J18: 69,457.50000 | K18: Х
B19: местный бюджет | C19: =SUM(D19:J19) -> 480,658.59014 | D19: =D44+D165+D196+D225+D279+D348+D374+D246+D327 -> 48,065.00000 | E19: 76,223.96000 | F19: 80,539.63014 | G19: 67,457.50000 | H19: 69,457.50000 | I19: 69,457.50000 | J19: 69,457.50000
B20: областной бюджет | C20: =SUM(D20:J20) -> 4,321.30000 | D20: =SUM(D166+D373+D45) -> 3,000.00000 | E20: 346.20000 | F20: 975.10000 | G20: 0.00000 | H20: 0.00000 | I20: 0.00000 | J20: 0.00000
B21: федеральный бюджет | C21: =SUM(D21:J21) -> 0.00000 | D21: 0.00000 | E21: =E166 -> 0.00000 | F21: 0.00000 | G21: 0.00000 | H21: 0.00000 | I21: 0.00000 | J21: 0.00000
A22: Подпрограмма 1: Комплексное благоустройство территории Североуральского городского округа
B23: Всего по подпрограмме 1, | C23: =SUM(C25+C26) -> 215,039.55435 | D23: =SUM(D25:D26) -> 25,725.20000 | E23: 29,762.20000 | F23: 45,458.95435 | G23: 28,523.30000 | H23: 28,523.30000 | I23: 28,523.30000 | J23: 28,523.30000 | K23: Х
B24: в том числе:
B25: местный бюджет | C25: =SUM(D25:J25) -> 209,189.85435 | D25: =SUM(D29+D44) -> 24,510.50000 | E25: 26,102.30000 | F25: 44,483.85435 | G25: 28,523.30000 | H25: 28,523.30000 | I25: 28,523.30000 | J25: 28,523.30000
B26: областной бюджет | C26: =SUM(D26:J26) -> 5,849.70000 | D26: =SUM(D30+D45) -> 1,214.70000 | E26: 3,659.90000 | F26: 975.10000 | G26: 0.00000 | H26: 0.00000 | I26: 0.00000 | J26: 0.00000
A27: 1. Капитальные вложения
B28: Всего по направлению «Капитальные вложения» всего, в том числе | C28: =SUM(D28:J28) -> 27,017.30000 | D28: =SUM(D29+D30) -> 3,536.40000 | E28: =SUM(E29+E30) -> 3,674.70000 | F28: =SUM(F29) -> 4,819.00000 | G28: =SUM(G29) -> 3,746.80000 | H28: =SUM(H29) -> 3,746.80000 | I28: =SUM(I29) -> 3,746.80000 | J28: =SUM(J29) -> 3,746.80000 | K28: Х
B29: местный бюджет | C29: =SUM(D29:J29) -> 22,488.90000 | D29: =SUM(D40) -> 2,321.70000 | E29: =SUM(E40) -> 361.00000 | F29: 4,819.00000 | G29: 3,746.80000 | H29: 3,746.80000 | I29: 3,746.80000 | J29: 3,746.80000
B30: областной бюджет | C30: =SUM(D30:J30) -> 4,528.40000 | D30: =SUM(D37) -> 1,214.70000 | E30: =SUM(E37) -> 3,313.70000 | F30: 0.00000 | G30: 0.00000 | H30: 0.00000 | I30: 0.00000 | J30: 0.00000
A31: 1.1. Бюджетные инвестиции в объекты капитального строительства
B32: Бюджетные инвестиции в объекты капитального строительства всего, в том числе | C32: 0.00000 | D32: 0.00000 | E32: 0.00000 | F32: 0.00000 | G32: 0.00000 | H32: 0.00000 | I32: 0.00000 | J32: 0.00000 | K32: Х
B33: местный бюджет | C33: 0.00000 | D33: 0.00000 | E33: 0.00000 | F33: 0.00000 | G33: 0.00000 | H33: 0.00000 | I33: 0.00000 | J33: 0.00000
A34: 1.2. Иные капитальные вложения
B35: Всего | C35: =SUM(D35:J35) -> 27,017.30000 | D35: =SUM(D36:D37) -> 3,536.40000 | E35: =SUM(E36:E37) -> 3,674.70000 | F35: 4,819.00000 | G35: 3,746.80000 | H35: 3,746.80000 | I35: 3,746.80000 | J35: 3,746.80000 | K35: Х
B36: местный бюджет | C36: =SUM(D36:J36) -> 22,488.90000 | D36: =SUM(D40) -> 2,321.70000 | E36: =SUM(E40) -> 361.00000 | F36: 4,819.00000 | G36: 3,746.80000 | H36: 3,746.80000 | I36: 3,746.80000 | J36: 3,746.80000
B37: областной бюджет | C37: =SUM(D37:J37) -> 4,528.40000 | D37: =SUM(D41) -> 1,214.70000 | E37: =SUM(E41) -> 3,313.70000 | F37: 0.00000 | G37: 0.00000 | H37: 0.00000 | I37: 0.00000 | J37: 0.00000
A38: Мероприятие 1 Благоустройство дворовых территорий Североуральского городского округа
B39: Всего, из них | C39: =SUM(D39:J39) -> 27,017.30000 | D39: =D40+D41 -> 3,536.40000 | E39: =SUM(E40:E41) -> 3,674.70000 | F39: =SUM(F40) -> 4,819.00000 | G39: =SUM(G40) -> 3,746.80000 | H39: =SUM(H40) -> 3,746.80000 | I39: =SUM(I40) -> 3,746.80000 | J39: =SUM(J40) -> 3,746.80000 | K39: 4
B40: местный бюджет | C40: =SUM(D40:J40) -> 22,488.90000 | D40: 2,321.70000 | E40: 361.00000 | F40: 4,819.00000 | G40: 3,746.80000 | H40: 3,746.80000 | I40: =SUM(H40) -> 3,746.80000 | J40: =SUM(I40) -> 3,746.80000
B41: областной бюджет | C41: =D41+E41+F41+G41+H41+I41+J41 -> 4,528.40000 | D41: 1,214.70000 | E41: 3,313.70000 | F41: 0.00000 | G41: 0.00000 | H41: 0.00000 | I41: 0.00000 | J41: 0.00000
A42: 3. Прочие нужды
B43: Всего по направлению «Прочие нужды», всего, в том числе: | C43: =SUM(D43:J43) -> 188,022.25435 | D43: =SUM(D44:D45) -> 22,188.80000 | E43: 26,087.50000 | F43: 40,639.95435 | G43: 24,776.50000 | H43: 24,776.50000 | I43: 24,776.50000 | J43: 24,776.50000 | K43: Х | N43: =SUM(E40+E48) -> 797.0
B44: местный бюджет | C44: =SUM(D44:J44) -> 186,700.95435 | D44: =SUM(D55+D64+D67+D70+D48+D111) -> 22,188.80000 | E44: =SUM(E55+E64+E67+E70+E48+E111) -> 25,741.30000 | F44: =SUM(F55+F64+F67+F70+F48+F111) -> 39,664.85435 | G44: 24,776.50000 | H44: 24,776.50000 | I44: 24,776.50000 | J44: 24,776.50000
B45: областной бюджет | C45: =SUM(D45:J45) -> 1,321.30000 | D45: =SUM(D71) -> 0.00000 | E45: =SUM(E71) -> 346.20000 | F45: =SUM(F112) -> 975.10000 | G45: =SUM(G112) -> 0.00000 | H45: =SUM(H112) -> 0.00000 | I45: =SUM(I112) -> 0.00000 | J45: =SUM(J112) -> 0.00000
A46: Мероприятие 1 Благоустройство дворовых территорий Североуральского городского округа
B47: Всего, из них | C47: =SUM(D47:J47) -> 3,427.90000 | D47: =D48+D49 -> 310.90000 | E47: =SUM(E48) -> 436.00000 | F47: 2,681.00000 | G47: 0.00000 | H47: 0.00000 | I47: 0.00000 | J47: 0.00000 | K47: 4
B48: местный бюджет | C48: =SUM(D48:J48) -> 3,427.90000 | D48: 310.90000 | E48: 436.00000 | F48: 2,681.00000 | G48: 0.00000 | H48: =SUM(G48) -> 0.00000 | I48: =SUM(H48) -> 0.00000 | J48: =SUM(I48) -> 0.00000
B49: областной бюджет | C49: =D49+E49+F49+G49+H49+I49+J49 -> 0.00000 | D49: 0.00000 | E49: 0.00000 | F49: 0.00000 | G49: 0.00000 | H49: 0.00000 | I49: 0.00000 | J49: 0.00000
A50: Мероприятие 2 Благоустройство парков и скверов в городе Североуральске
B51: Всего, из них | C51: =SUM(D51:J51) -> 0.00000 | D51: =D52+D53 -> 0.00000 | E51: =SUM(E52) -> 0.00000 | F51: 0.00000 | G51: 0.00000 | H51: 0.00000 | I51: 0.00000 | J51: 0.00000 | K51: 5
B52: местный бюджет | C52: =SUM(D52:J52) -> 0.00000 | D52: 0.00000 | E52: 0.00000 | F52: 0.00000 | G52: 0.00000 | H52: =SUM(G52) -> 0.00000 | I52: =SUM(H52) -> 0.00000 | J52: =SUM(I52) -> 0.00000
A53: Мероприятие 3- Уличное освещение
B54: Всего, в том числе: | C54: =SUM(D54:J54) -> 93,691.00000 | D54: =SUM(D55) -> 12,001.00000 | E54: 12,600.00000 | F54: 16,290.00000 | G54: 13,200.00000 | H54: 13,200.00000 | I54: 13,200.00000 | J54: 13,200.00000 | K54: 8, 8.1.
B55: местный бюджет | C55: =SUM(D55:J55) -> 93,691.00000 | D55: =SUM(D58+D61) -> 12,001.00000 | E55: 12,600.00000 | F55: 16,290.00000 | G55: 13,200.00000 | H55: 13,200.00000 | I55: 13,200.00000 | J55: 13,200.00000
A56: - Обеспечение бесперебойной подачи электроэнергии
B57: Всего: | C57: =SUM(D57:J57) -> 61,444.10000 | D57: =SUM(D58) -> 8,644.10000 | E57: =SUM(E58) -> 8,800.00000 | F57: 8,800.00000 | G57: 8,800.00000 | H57: 8,800.00000 | I57: 8,800.00000 | J57: 8,800.00000 | K57: 8, 8.1.
B58: местный бюджет | C58: =SUM(D58:J58) -> 61,444.10000 | D58: 8,644.10000 | E58: 8,800.00000 | F58: 8,800.00000 | G58: 8,800.00000 | H58: 8,800.00000 | I58: 8,800.00000 | J58: 8,800.00000
A59: - Содержание и ремонт сетей уличного освещения
B60: Всего: | C60: =SUM(D60:J60) -> 32,246.90000 | D60: =SUM(D61) -> 3,356.90000 | E60: =SUM(E61) -> 3,800.00000 | F60: 7,490.00000 | G60: 4,400.00000 | H60: 4,400.00000 | I60: 4,400.00000 | J60: 4,400.00000 | K60: 8, 8.1.
B61: местный бюджет | C61: =SUM(D61:J61) -> 32,246.90000 | D61: 3,356.90000 | E61: 3,800.00000 | F61: 7,490.00000 | G61: 4,400.00000 | H61: 4,400.00000 | I61: 4,400.00000 | J61: 4,400.00000
A62: Мероприятие 4 - Озеленение (цветники, валка сухих деревьев)
B63: Всего, из них | C63: =SUM(D63:J63) -> 22,172.74386 | D63: =SUM(D64) -> 2,890.90000 | E63: 2,148.00000 | F63: 3,923.84386 | G63: 3,302.50000 | H63: 3,302.50000 | I63: 3,302.50000 | J63: 3,302.50000 | K63: 10
B64: местный бюджет | C64: =SUM(D64:J64) -> 22,172.74386 | D64: 2,890.90000 | E64: 2,148.00000 | F64: 3,923.84386 | G64: 3,302.50000 | H64: 3,302.50000 | I64: =SUM(H64) -> 3,302.50000 | J64: =SUM(I64) -> 3,302.50000
A65: Мероприятие 5 - Организация и содержание мест захоронения
B66: Всего, из них | C66: =SUM(D66:J66) -> 19,632.54212 | D66: =SUM(D67) -> 2,263.10000 | E66: 2,306.90000 | F66: 3,619.34212 | G66: 2,860.80000 | H66: 2,860.80000 | I66: 2,860.80000 | J66: 2,860.80000 | K66: 15
B67: местный бюджет | C67: =SUM(D67:J67) -> 19,632.54212 | D67: 2,263.10000 | E67: 2,306.90000 | F67: 3,619.34212 | G67: 2,860.80000 | H67: 2,860.80000 | I67: =SUM(H67) -> 2,860.80000 | J67: =SUM(I67) -> 2,860.80000
A68: Мероприятие 6 - Прочие мероприятия по благоустройству
B69: Всего, в том числе: | C69: =SUM(D69:J69) -> 44,522.96837 | D69: =SUM(D70:D71) -> 4,722.90000 | E69: =SUM(E70:E71) -> 8,596.60000 | F69: 12,350.66837 | G69: 4,713.20000 | H69: 4,713.20000 | I69: 4,713.20000 | J69: 4,713.20000 | K69: 5,6,10,12,13,14,16
B70: местный бюджет | C70: =SUM(D70:J70) -> 44,176.76837 | D70: =SUM(D74+D77+D84+D87+D96+D90+D99+D105+D93+D102+D80) -> 4,722.90000 | E70: =SUM(E74+E77+E84+E87+E96+E90+E99+E105+E93+E102+E80+E108) -> 8,250.40000 | F70: =SUM(F74+F77+F84+F87+F96+F90+F99+F105+F93+F102+F80+F108) -> 12,350.66837 | G70: 4,713.20000 | H70: 4,713.20000 | I70: 4,713.20000 | J70: 4,713.20000
B71: областной бюджет | C71: =SUM(D71:J71) -> 346.20000 | D71: =SUM(D81) -> 0.00000 | E71: =SUM(E81) -> 346.20000 | F71: 0.00000 | G71: 0.00000 | H71: 0.00000 | I71: 0.00000 | J71: 0.00000
A72: - Содержание памятников
B73: Всего: | C73: =SUM(C74) -> 2,922.40006 | D73: 369.20000 | E73: 404.90000 | F73: 384.30006 | G73: 441.00000 | H73: 441.00000 | I73: 441.00000 | J73: 441.00000 | K73: 16
B74: местный бюджет | C74: =SUM(D74:J74) -> 2,922.40006 | D74: 369.20000 | E74: 404.90000 | F74: 384.30006 | G74: 441.00000 | H74: 441.00000 | I74: =SUM(H74) -> 441.00000 | J74: =SUM(I74) -> 441.00000
A75: - Проведение комплекса профилактических работ по уходу за объектами благоустройства
B76: Всего: | C76: =SUM(C77) -> 7,980.52035 | D76: =SUM(D77) -> 1,098.70000 | E76: =SUM(E77) -> 976.10000 | F76: 1,054.52035 | G76: 1,212.80000 | H76: 1,212.80000 | I76: 1,212.80000 | J76: 1,212.80000 | K76: 5
B77: местный бюджет | C77: =SUM(D77:J77) -> 7,980.52035 | D77: 1,098.70000 | E77: 976.10000 | F77: 1,054.52035 | G77: 1,212.80000 | H77: 1,212.80000 | I77: =SUM(H77) -> 1,212.80000 | J77: =SUM(I77) -> 1,212.80000
A78: - Регулирование численности безнадзорных животных
B79: Всего: | C79: =SUM(D79:J79) -> 1,677.20000 | D79: =SUM(D80:D81) -> 500.00000 | E79: =SUM(E80:E81) -> 1,177.20000 | F79: 0.00000 | G79: 0.00000 | H79: 0.00000 | I79: 0.00000 | J79: 0.00000 | K79: 12
B80: местный бюджет | C80: =SUM(D80:J80) -> 1,331.00000 | D80: 500.00000 | E80: 831.00000 | F80: 0.00000 | G80: 0.00000 | H80: 0.00000 | I80: =SUM(H80) -> 0.00000 | J80: =SUM(I80) -> 0.00000
B81: областной бюджет | C81: =SUM(D81:J81) -> 346.20000 | E81: 346.20000
A82: - Содержание биоямы (скотомогильник)
B83: Всего: | C83: =SUM(C84) -> 924.02912 | D83: =SUM(D84) -> 116.10000 | E83: =SUM(E84) -> 69.30000 | F83: 77.02912 | G83: 165.40000 | H83: 165.40000 | I83: 165.40000 | J83: 165.40000 | K83: 14
B84: местный бюджет | C84: =SUM(D84:J84) -> 924.02912 | D84: 116.10000 | E84: 69.30000 | F84: 77.02912 | G84: 165.40000 | H84: 165.40000 | I84: =SUM(H84) -> 165.40000 | J84: =SUM(I84) -> 165.40000
A85: - Обустройство и эксплуатация новогодних городков
B86: Всего: | C86: =SUM(C87) -> 16,669.10000 | D86: =SUM(D87) -> 1,685.50000 | E86: =SUM(E87) -> 2,669.20000 | F86: 2,900.00000 | G86: 2,353.60000 | H86: 2,353.60000 | I86: 2,353.60000 | J86: 2,353.60000 | K86: 5
B87: местный бюджет | C87: =SUM(D87:J87) -> 16,669.10000 | D87: 1,685.50000 | E87: 2,669.20000 | F87: 2,900.00000 | G87: 2,353.60000 | H87: 2,353.60000 | I87: =SUM(H87) -> 2,353.60000 | J87: =SUM(I87) -> 2,353.60000
A88: - Приобретение декоративного освещения для улиц города Североуральска
B89: Всего: | C89: =SUM(C90) -> 2,474.40000 | D89: =SUM(D90) -> 773.40000 | E89: =SUM(E90) -> 1,701.00000 | F89: 0.00000 | G89: 0.00000 | H89: 0.00000 | I89: 0.00000 | J89: 0.00000 | K89: 5
B90: местный бюджет | C90: =SUM(D90:J90) -> 2,474.40000 | D90: 773.40000 | E90: 1,701.00000 | F90: 0.00000 | G90: 0.00000 | H90: =SUM(G90) -> 0.00000 | I90: =SUM(H90) -> 0.00000 | J90: =SUM(I90) -> 0.00000
A91: - Обслуживание декоративного освещения для улиц города Североуральска
B92: Всего: | C92: =SUM(C93) -> 0.00000 | D92: =SUM(D93) -> 0.00000 | E92: =SUM(E93) -> 0.00000 | F92: 0.00000 | G92: 0.00000 | H92: 0.00000 | I92: 0.00000 | J92: 0.00000 | K92: 5
B93: местный бюджет | C93: =SUM(D93:J93) -> 0.00000 | D93: 0.00000 | E93: 0.00000 | F93: 0.00000 | G93: 0.00000 | H93: 0.00000 | I93: =SUM(H93) -> 0.00000 | J93: =SUM(I93) -> 0.00000
A94: - Акарицидная обработка общественных мест
B95: Всего: | C95: =SUM(C96) -> 1,615.08990 | D95: =SUM(D96) -> 92.00000 | E95: =SUM(E96) -> 99.90000 | F95: 99.98990 | G95: 330.80000 | H95: 330.80000 | I95: 330.80000 | J95: 330.80000 | K95: 13
B96: местный бюджет | C96: =SUM(D96:J96) -> 1,615.08990 | D96: 92.00000 | E96: 99.90000 | F96: 99.98990 | G96: 330.80000 | H96: 330.80000 | I96: =SUM(H96) -> 330.80000 | J96: =SUM(I96) -> 330.80000
A97: - Приобретение грунта плодородного (земли садовой)
B98: Всего: | C98: =SUM(C99) -> 1,076.40000 | D98: =SUM(D99) -> 88.00000 | E98: =SUM(E99) -> 0.00000 | F98: 150.00000 | G98: 209.60000 | H98: 209.60000 | I98: 209.60000 | J98: 209.60000 | K98: 10
B99: местный бюджет | C99: =SUM(D99:J99) -> 1,076.40000 | D99: 88.00000 | E99: 0.00000 | F99: 150.00000 | G99: 209.60000 | H99: 209.60000 | I99: =SUM(H99) -> 209.60000 | J99: =SUM(I99) -> 209.60000
A100: - Приобретение и установка металлических урн и скамеек
B101: Всего: | C101: =SUM(C102) -> 1,754.82894 | D101: =SUM(D102) -> 0.00000 | E101: =SUM(E102) -> 0.00000 | F101: 1,754.82894 | G101: 0.00000 | H101: 0.00000 | I101: 0.00000 | J101: 0.00000 | K101: 6
B102: местный бюджет | C102: =SUM(D102:J102) -> 1,754.82894 | D102: 0.00000 | E102: 0.00000 | F102: 1,754.82894 | G102: 0.00000 | H102: 0.00000 | I102: =SUM(H102) -> 0.00000 | J102: =SUM(I102) -> 0.00000
A103: - Благоустройство мест общего пользования территории Североуральского городского округа
B104: Всего: | C104: =SUM(C105) -> 7429.00000 | D104: =SUM(D105) -> 0.00000 | E104: =SUM(E105) -> 1499.00000 | F104: 5930.00000 | G104: 0.00000 | H104: 0.00000 | I104: 0.00000 | J104: 0.00000 | K104: 5
B105: местный бюджет | C105: =SUM(D105:J105) -> 7429.00000 | D105: 0.00000 | E105: 1499.00000 | F105: 5930.00000 | G105: 0.00000 | H105: 0.00000 | I105: =SUM(H105) -> 0.00000 | J105: =SUM(I105) -> 0.00000
A106: - Приобретение и установка остановочных комплексов на территории Североуральского городского округа
B107: Всего: | C107: =SUM(C108) -> 0.00000 | D107: =SUM(D108) -> 0.00000 | E107: =SUM(E108) -> 0.00000 | F107: 0.00000 | G107: 0.00000 | H107: 0.00000 | I107: 0.00000 | J107: 0.00000 | K107: 5
B108: местный бюджет | C108: =SUM(D108:J108) -> 0.00000 | D108: 0.00000 | E108: 0.00000 | F108: 0.00000 | G108: 0.00000 | H108: 0.00000 | I108: =SUM(H108) -> 0.00000 | J108: =SUM(I108) -> 0.00000
A109: Мероприятие 7 - Регулирование численности безнадзорных животных
B110: Всего, из них | C110: =SUM(D110:J110) -> 4575.10000 | D110: =SUM(D111:D112) -> 0.00000 | E110: =SUM(E111:E112) -> 0.00000 | F110: 1775.10000 | G110: 700.00000 | H110: 700.00000 | I110: 700.00000 | J110: 700.00000 | K110: 12
B111: местный бюджет | C111: =SUM(D111:J111) -> 3600.00000 | D111: 0.00000 | E111: 0.00000 | F111: 800.00000 | G111: 700.00000 | H111: 700.00000 | I111: =SUM(H111) -> 700.00000 | J111: =SUM(I111) -> 700.00000
B112: областной бюджет | C112: =SUM(D112:J112) -> 975.10000 | E112: 0.00000 | F112: 975.10000
A113: Подпрограмма 2: Муниципальная программа по энергосбережению и повышению энергетической эффективности объектов Североуральского городского округа
B114: Всего по подпрограмме 2, в том числе | C114: =SUM(D114:J114) -> 88,497.30000 | D114: =SUM(D115:D116) -> 9,165.50000 | E114: 2,961.60000 | F114: 31,065.00000 | G114: 10,576.30000 | H114: 11,576.30000 | I114: 11,576.30000 | J114: 11,576.30000 | K114: Х
B115: местный бюджет | C115: =SUM(D115:J115) -> 68,652.90000 | D115: =SUM(D119+D165) -> 2,821.10000 | E115: =SUM(E119+E165) -> 2,961.60000 | F115: =F119+F165 -> 17,565.00000 | G115: =SUM(G119+G165) -> 10,576.30000 | H115: 11,576.30000 | I115: 11,576.30000 | J115: 11,576.30000
B116: областной бюджет | C116: =SUM(D116:J116) -> 19,844.40000 | D116: =SUM(D120+D166) -> 6,344.40000 | E116: =SUM(E120+E166) -> 0.00000 | F116: =SUM(F120+F166) -> 13,500.00000 | G116: 0.00000 | H116: 0.00000 | I116: 0.00000 | J116: 0.00000
A117: 1. Капитальные вложения
B118: Всего по направлению «Капитальные вложения», всего, в том числе | C118: =SUM(C119:C120) -> 54,938.80000 | D118: 4,173.60000 | E118: 1,420.00000 | F118: 29,500.00000 | G118: 4,961.30000 | H118: 4,961.30000 | I118: 4,961.30000 | J118: 4,961.30000 | K118: Х
B119: местный бюджет | C119: =SUM(D119:J119) -> 38,094.40000 | D119: =SUM(D153+D123) -> 829.20000 | E119: 1,420.00000 | F119: 16,000.00000 | G119: 4,961.30000 | H119: 4,961.30000 | I119: 4,961.30000 | J119: 4,961.30000
B120: областной бюджет | C120: =SUM(D120:J120) -> 16,844.40000 | D120: 3,344.40000 | E120: 0.00000 | F120: 13,500.00000 | G120: 0.00000 | H120: 0.00000 | I120: 0.00000 | J120: 0.00000
A121: 1.1. Бюджетные инвестиции в объекты капитального строительства
B122: Бюджетные инвестиции в объекты капитального строительства всего, в том числе | C122: =SUM(D122:J122) -> 29,500.00000 | D122: =SUM(D123:D124) -> 0.00000 | E122: =SUM(E123:E124) -> 0.00000 | F122: 29,500.00000 | G122: 0.00000 | H122: 0.00000 | I122: 0.00000 | J122: 0.00000 | K122: Х
B123: местный бюджет | C123: =SUM(D123:J123) -> 16,000.00000 | D123: =SUM(D127+D139+D142+D146+D149) -> 0.00000 | E123: 0.00000 | F123: 16,000.00000 | G123: 0.00000 | H123: 0.00000 | I123: 0.00000 | J123: 0.00000
B124: областной бюджет | C124: =SUM(D124:J124) -> 13,500.00000 | D124: =SUM(D128+D143+D150) -> 0.00000 | E124: =SUM(E128+E143+E150) -> 0.00000 | F124: 13,500.00000 | G124: 0.00000 | H124: 0.00000 | I124: 0.00000 | J124: 0.00000
A125: Мероприятие 3 - Закупка и установка осветительного оборудования с заменой неэффективного на энергосберегающее, в том числе замена ламп накаливания на энергосберегающие, строительство, модернизация сетей уличного освещения, проектно-сметные работы, экспертиза проектно-сметной документации
B126: Всего, из них | C126: =SUM(C127:C128) -> 12,500.00000 | D126: =SUM(D127:D128) -> 0.00000 | E126: =SUM(E127:E128) -> 0.00000 | F126: 12,500.00000 | G126: 0.00000 | H126: 0.00000 | I126: 0.00000 | J126: 0.00000 | K126: 27
B127: местный бюджет | C127: =SUM(D127:J127) -> 12,500.00000 | D127: 0.00000 | E127: 0.00000 | F127: =SUM(F135+F131) -> 12,500.00000 | G127: 0.00000 | H127: =SUM(G127) -> 0.00000 | I127: 0.00000 | J127: 0.00000
B128: областной бюджет | C128: =SUM(D128:J128) -> 0.00000 | D128: 0.00000 | E128: 0.00000 | F128: 0.00000 | G128: 0.00000 | H128: 0.00000 | I128: 0.00000 | J128: 0.00000
A129: - Разработка ПСД на строительство сетей уличного освещения микрорайона Южный
B130: Всего: | C130: =SUM(C131) -> 453.20066 | D130: 0.00000 | E130: 0.00000 | F130: 453.20066 | G130: 0.00000 | H130: 0.00000 | I130: 0.00000 | J130: 0.00000 | K130: 27
B131: местный бюджет | C131: =SUM(D131:J131) -> 453.20066 | D131: 0.00000 | E131: 0.00000 | F131: 453.20066 | G131: 0.00000 | H131: 0.00000 | I131: =SUM(H131) -> 0.00000 | J131: =SUM(I131) -> 0.00000
B132: областной бюджет | C132: =SUM(D132:J132) -> 0.00000 | D132: 0.00000 | E132: 0.00000 | F132: 0.00000 | G132: 0.00000 | H132: 0.00000 | I132: 0.00000 | J132: 0.00000
A133: - Строительство сетей уличного освещения микрорайона Южный
B134: Всего: | C134: =SUM(C135) -> 12,046.79934 | D134: 0.00000 | E134: 0.00000 | F134: 12,046.79934 | G134: 0.00000 | H134: 0.00000 | I134: 0.00000 | J134: 0.00000 | K134: 27
B135: местный бюджет | C135: =SUM(D135:J135) -> 12,046.79934 | D135: 0.00000 | E135: 0.00000 | F135: 12,046.79934 | G135: 0.00000 | H135: 0.00000 | I135: =SUM(H135) -> 0.00000 | J135: =SUM(I135) -> 0.00000
B136: областной бюджет | C136: =SUM(D136:J136) -> 0.00000 | D136: 0.00000 | E136: 0.00000 | F136: 0.00000 | G136: 0.00000 | H136: 0.00000 | I136: 0.00000 | J136: 0.00000
A137: Мероприятие 5 - Разработка, экспертиза проектно-сметной документации на строительство сетей водоснабжения в Североуральском городском округе
B138: Всего, из них | C138: =SUM(D138:J138) -> 0.00000 | D138: =SUM(D139) -> 0.00000 | E138: =SUM(E139) -> 0.00000 | F138: 0.00000 | G138: 0.00000 | H138: 0.00000 | I138: 0.00000 | J138: 0.00000 | K138: 30
B139: местный бюджет | C139: =SUM(D139:J139) -> 0.00000 | D139: 0.00000 | E139: 0.00000 | F139: 0.00000 | G139: 0.00000 | H139: =SUM(G139) -> 0.00000 | I139: =SUM(H139) -> 0.00000 | J139: =SUM(I139) -> 0.00000
A140: Мероприятие 6 - Строительство сетей водоснабжения в Североуральском городском округе
B141: Всего, из них | C141: =SUM(C142:C143) -> 0.00000 | D141: =SUM(D142:D143) -> 0.00000 | E141: =SUM(E142:E143) -> 0.00000 | F141: 0.00000 | G141: 0.00000 | H141: 0.00000 | I141: 0.00000 | J141: 0.00000 | K141: 31
B142: местный бюджет | C142: =SUM(D142:J142) -> 0.00000 | D142: 0.00000 | E142: 0.00000 | F142: 0.00000 | G142: 0.00000 | H142: =SUM(G142) -> 0.00000 | I142: 0.00000 | J142: 0.00000
B143: областной бюджет | C143: =SUM(D143:J143) -> 0.00000 | D143: 0.00000 | E143: 0.00000 | F143: 0.00000 | G143: 0.00000 | H143: 0.00000 | I143: 0.00000 | J143: 0.00000
A144: Мероприятие 7 - Разработка, экспертиза проектно-сметной документации на строительство котельных в Североуральском городском округе
B145: Всего, из них | C145: =SUM(D145:J145) -> 2000.00000 | D145: =SUM(D146) -> 0.00000 | E145: =SUM(E146) -> 0.00000 | F145: 2000.00000 | G145: 0.00000 | H145: 0.00000 | I145: 0.00000 | J145: 0.00000 | K145: 32
B146: местный бюджет | C146: =SUM(D146:J146) -> 2000.00000 | D146: 0.00000 | E146: 0.00000 | F146: 2000.00000 | G146: 0.00000 | H146: =SUM(G146) -> 0.00000 | I146: =SUM(H146) -> 0.00000 | J146: =SUM(I146) -> 0.00000
A147: Мероприятие 8 - Строительство котельных в Североуральском городском округе
B148: Всего, из них | C148: =SUM(C149:C150) -> 15,000.00000 | D148: =SUM(D149:D150) -> 0.00000 | E148: =SUM(E149:E150) -> 0.00000 | F148: 15,000.00000 | G148: 0.00000 | H148: 0.00000 | I148: 0.00000 | J148: 0.00000 | K148: 33
B149: местный бюджет | C149: =SUM(D149:J149) -> 1,500.00000 | D149: 0.00000 | E149: 0.00000 | F149: 1,500.00000 | G149: 0.00000 | H149: 0.00000 | I149: =SUM(H149) -> 0.00000 | J149: =SUM(I149) -> 0.00000
B150: областной бюджет | C150: =SUM(D150:J150) -> 13,500.00000 | D150: 0.00000 | E150: 0.00000 | F150: 13,500.00000 | G150: 0.00000 | H150: =SUM(G150) -> 0.00000 | I150: =SUM(H150) -> 0.00000 | J150: =SUM(I150) -> 0.00000
A151: 1.2. Иные капитальные вложения
B152: Всего, в том числе | C152: =SUM(C153:C154) -> 25,438.80000 | D152: 4,173.60000 | E152: 1,420.00000 | F152: 0.00000 | G152: 4,961.30000 | H152: 4,961.30000 | I152: 4,961.30000 | J152: 4,961.30000 | K152: Х
B153: местный бюджет | C153: =SUM(D153:J153) -> 22,094.40000 | D153: =SUM(D157+D161) -> 829.20000 | E153: =SUM(E157+E161) -> 1,420.00000 | F153: 0.00000 | G153: 4,961.30000 | H153: 4,961.30000 | I153: 4,961.30000 | J153: 4,961.30000
B154: областной бюджет | C154: =SUM(D154:J154) -> 3,344.40000 | D154: =SUM(D158+D162) -> 3,344.40000 | E154: =SUM(E158+E162) -> 0.00000 | F154: 0.00000 | G154: 0.00000 | H154: 0.00000 | I154: 0.00000 | J154: 0.00000
A155: Мероприятие 1- Реконструкция, модернизация водопроводных сетей, сетей системы водоотведения с заменой (без замены) оборудования с более высоким КПД, установка регулируемого привода, реконструкция тепловых сетей, в том числе тепловых пунктов, котельных, капитальный ремонт систем коммунального хозяйства
B156: Всего, в том числе: | C156: =SUM(C157:C158) -> 22,882.60000 | D156: 3,037.40000 | E156: 0.00000 | F156: 0.00000 | G156: 4,961.30000 | H156: 4,961.30000 | I156: 4,961.30000 | J156: 4,961.30000 | K156: 28
B157: местный бюджет | C157: =SUM(D157:J157) -> 20,126.20000 | D157: 281.00000 | E157: 0.00000 | F157: 0.00000 | G157: 4,961.30000 | H157: 4,961.30000 | I157: =SUM(H157) -> 4,961.30000 | J157: 4,961.30000
B158: областной бюджет | C158: =SUM(D158:J158) -> 2,756.40000 | D158: 2,756.40000 | E158: 0.00000 | F158: 0.00000 | G158: 0.00000 | H158: 0.00000 | I158: 0.00000 | J158: 0.00000
A159: Мероприятие 3 - Закупка и установка осветительного оборудования с заменой неэффективного на энергосберегающее, в том числе замена ламп накаливания на энергосберегающие, строительство, модернизация сетей уличного освещения, проектно-сметные работы, экспертиза проектно-сметной документации
B160: Всего, из них | C160: =SUM(C161:C162) -> 2,556.20000 | D160: =SUM(D161:D162) -> 1,136.20000 | E160: =SUM(E161:E162) -> 1,420.00000 | F160: 0.00000 | G160: 0.00000 | H160: 0.00000 | I160: 0.00000 | J160: 0.00000 | K160: 27
B161: местный бюджет | C161: =SUM(D161:J161) -> 1,968.20000 | D161: 548.20000 | E161: 1,420.00000 | F161: 0.00000 | G161: 0.00000 | H161: =SUM(G161) -> 0.00000 | I161: 0.00000 | J161: 0.00000
B162: областной бюджет | C162: =SUM(D162:J162) -> 588.00000 | D162: 588.00000 | E162: 0.00000 | F162: 0.00000 | G162: 0.00000 | H162: 0.00000 | I162: 0.00000 | J162: 0.00000
A163: 3. Прочие нужды
B164: Всего по направлению «Прочие нужды», всего, в том числе: | C164: =SUM(D164:J164) -> 33,558.50000 | D164: =SUM(D165:D166) -> 4,991.90000 | E164: =SUM(E165:E166) -> 1,541.60000 | F164: 1,565.00000 | G164: 5,615.00000 | H164: 6,615.00000 | I164: 6,615.00000 | J164: 6,615.00000 | K164: Х
B165: местный бюджет | C165: =SUM(D165:J165) -> 30,558.50000 | D165: =SUM(D169+D174+D178+D181) -> 1,991.90000 | E165: =SUM(E169+E174+E178+E181) -> 1,541.60000 | F165: 1,565.00000 | G165: 5,615.00000 | H165: 6,615.00000 | I165: 6,615.00000 | J165: 6,615.00000
B166: областной бюджет | C166: =SUM(D166:J166) -> 3,000.00000 | D166: =SUM(D170+D175) -> 3,000.00000 | E166: =SUM(E170+E175) -> 0.00000 | F166: 0.00000 | G166: 0.00000 | H166: 0.00000 | I166: 0.00000 | J166: 0.00000
A167: Мероприятие 2 - Оснащение зданий (строений, сооружений), находящихся в муниципальной собственности, многоквартирных жилых домов, жилых помещений, квартир приборами учета используемых энергетических ресурсов, в том числе разработка проектно-сметной документации
B168: Всего, из них | C168: =SUM(D168:J168) -> 19,011.00000 | D168: =SUM(D169:D170) -> 4,200.00000 | E168: 1,100.00000 | F168: 1,481.00000 | G168: 2,307.50000 | H168: 3,307.50000 | I168: 3,307.50000 | J168: 3,307.50000 | K168: 20,22,23,24,25
B169: местный бюджет | C169: =SUM(D169:J169) -> 16,011.00000 | D169: 1,200.00000 | E169: 1,100.00000 | F169: 1,481.00000 | G169: 2,307.50000 | H169: 3,307.50000 | I169: =SUM(H169) -> 3,307.50000 | J169: =SUM(I169) -> 3,307.50000
B170: областной бюджет | C170: =SUM(D170:J170) -> 3,000.00000 | D170: 3,000.00000 | E170: =SUM(E171) -> 0.00000 | F170: 0.00000 | G170: 0.00000 | H170: 0.00000 | I170: 0.00000 | J170: 0.00000
B171: федеральный бюджет | C171: =SUM(D171:J171) -> 0.00000 | D171: 0.00000 | E171: 0.00000 | F171: 0.00000 | G171: =SUM(F171) -> 0.00000 | H171: =SUM(G171) -> 0.00000 | I171: =SUM(H171) -> 0.00000 | J171: =SUM(I171) -> 0.00000
A172: Мероприятие 3 - Закупка и установка осветительного оборудования с заменой неэффективного на энергосберегающее, в том числе замена ламп накаливания на энергосберегающие, строительство, модернизация сетей уличного освещения, проектно-сметные работы, экспертиза проектно-сметной документации
B173: Всего, из них | C173: =SUM(C174:C175) -> 13,821.90000 | D173: =SUM(D174:D175) -> 411.90000 | E173: =SUM(E174:E175) -> 180.00000 | F173: 0.00000 | G173: 3,307.50000 | H173: 3,307.50000 | I173: 3,307.50000 | J173: 3,307.50000 | K173: 27
B174: местный бюджет | C174: =SUM(D174:J174) -> 13,821.90000 | D174: 411.90000 | E174: 180.00000 | F174: 0.00000 | G174: 3,307.50000 | H174: 3,307.50000 | I174: =SUM(H174) -> 3,307.50000 | J174: 3,307.50000
B175: областной бюджет | C175: =SUM(D175:J175) -> 0.00000 | D175: 0.00000 | E175: 0.00000 | F175: 0.00000 | G175: 0.00000 | H175: 0.00000 | I175: 0.00000 | J175: 0.00000
A176: Мероприятие 4- Разработка схемы водоснабжения Североуральского городского округа
B177: Всего, из них | C177: =SUM(D177:J177) -> 380.00000 | D177: =SUM(D178) -> 380.00000 | E177: =SUM(E178) -> 0.00000 | F177: 0.00000 | G177: 0.00000 | H177: 0.00000 | I177: 0.00000 | J177: 0.00000 | K177: 29
B178: местный бюджет | C178: =SUM(D178:J178) -> 380.00000 | D178: 380.00000 | E178: 0.00000 | F178: 0.00000 | G178: =SUM(F178) -> 0.00000 | H178: =SUM(G178) -> 0.00000 | I178: =SUM(H178) -> 0.00000 | J178: =SUM(I178) -> 0.00000
A179: Мероприятие 9- Прочие мероприятия в области энергосбережения (разработка технических заданий, топливно-энерготехнического баланса и т.п.)
B180: Всего, из них | C180: =SUM(D180:J180) -> 345.60000 | D180: =SUM(D181) -> 0.00000 | E180: =SUM(E181) -> 261.60000 | F180: 84.00000 | G180: 0.00000 | H180: 0.00000 | I180: 0.00000 | J180: 0.00000 | K180: 34.35
B181: местный бюджет | C181: =SUM(D181:J181) -> 345.60000 | D181: 0.00000 | E181: 261.60000 | F181: 84.00000 | G181: 0.00000 | H181: 0.00000 | I181: =SUM(H181) -> 0.00000 | J181: =SUM(I181) -> 0.00000
A182: Подпрограмма 3: Развитие лесного хозяйства на территории Североуральского городского округа
B183: Всего по подпрограмме 1, всего, в том числе | C183: =SUM(C184:C184) -> 2,497.60000 | D183: =SUM(D184) -> 774.10000 | E183: =SUM(E184) -> 881.10000 | F183: 0.00000 | G183: 210.60000 | H183: 210.60000 | I183: 210.60000 | J183: 210.60000 | K183: Х
B184: местный бюджет | C184: =SUM(D184:J184) -> 2,497.60000 | D184: =SUM(D196) -> 774.10000 | E184: =SUM(E196) -> 881.10000 | F184: 0.00000 | G184: 210.60000 | H184: 210.60000 | I184: 210.60000 | J184: 210.60000
A185: 1. Капитальные вложения
B186: Всего по направлению «Капитальные вложения», всего, в том числе | C186: 0.00000 | D186: 0.00000 | E186: 0.00000 | F186: 0.00000 | G186: 0.00000 | H186: 0.00000 | I186: 0.00000 | J186: 0.00000 | K186: Х
B187: местный бюджет | C187: 0.00000 | D187: 0.00000 | E187: 0.00000 | F187: 0.00000 | G187: 0.00000 | H187: 0.00000 | I187: 0.00000 | J187: 0.00000
A188: 1.1. Бюджетные инвестиции в объекты капитального строительства
B189: Бюджетные инвестиции в объекты капитального строительства всего, в том числе: | C189: =SUM(C190) -> 0.00000 | D189: =SUM(D190) -> 0.00000 | E189: 0.00000 | F189: 0.00000 | G189: 0.00000 | H189: 0.00000 | I189: 0.00000 | J189: 0.00000 | K189: Х
B190: местный бюджет | C190: 0.00000 | D190: 0.00000 | E190: 0.00000 | F190: 0.00000 | G190: 0.00000 | H190: 0.00000 | I190: 0.00000 | J190: 0.00000
A191: 1.2. Иные капитальные вложения
B192: Всего, в том числе: | C192: =SUM(A194) -> 0.00000 | D192: 0.00000 | E192: 0.00000 | F192: 0.00000 | G192: 0.00000 | H192: 0.00000 | I192: 0.00000 | J192: 0.00000 | K192: Х
B193: местный бюджет | C193: 0.00000 | D193: 0.00000 | E193: 0.00000 | F193: 0.00000 | G193: 0.00000 | H193: 0.00000 | I193: 0.00000 | J193: 0.00000
A194: 3. Прочие нужды
B195: Всего, из них | C195: =SUM(C196:C196) -> 2,497.60000 | D195: 774.10000 | E195: 881.10000 | F195: 0.00000 | G195: 210.60000 | H195: 210.60000 | I195: 210.60000 | J195: 210.60000 | K195: Х
B196: местный бюджет | C196: =SUM(D196:J196) -> 2,497.60000 | D196: =SUM(D199) -> 774.10000 | E196: =SUM(E199) -> 881.10000 | F196: 0.00000 | G196: 210.60000 | H196: 210.60000 | I196: 210.60000 | J196: 210.60000
A197: Мероприятие 1- Развитие лесного хозяйства на территории Североуральского городского округа
B198: Всего, в том числе: | C198: =SUM(D198:J198) -> 2,497.60000 | D198: =SUM(D199) -> 774.10000 | E198: =SUM(E199) -> 881.10000 | F198: 0.00000 | G198: 210.60000 | H198: 210.60000 | I198: 210.60000 | J198: 210.60000 | K198: 39
B199: местный бюджет | C199: =SUM(D199:J199) -> 2,497.60000 | D199: 774.10000 | E199: 881.10000 | F199: 0.00000 | G199: 210.60000 | H199: 210.60000 | I199: =SUM(H199) -> 210.60000 | J199: =SUM(I199) -> 210.60000
A200: Подпрограмма 4 : Переселение граждан на территории Североуральского городского округа из аварийного жилищного фонда
B201: Всего по подпрограмме 4, всего, в том числе | C201: =SUM(C202:C204) -> 607,716.94201 | D201: =SUM(D202:D204) -> 223,750.00000 | E201: 267,296.10000 | F201: 116,670.84201 | G201: 0.00000 | H201: 0.00000 | I201: 0.00000 | J201: 0.00000 | K201: Х
... 182 more rows

Sheet Лист2

Sheet Лист3
